[Event "*** Titled Tuesday Blitz"]
[Site "Chess.com"]
[Date "2020.05.26"]
[Round "4"]
[White "jonaszmb"]
[Black "quesfr"]
[Result "1-0"]
[WhiteElo "2477"]
[BlackElo "2297"]
[TimeControl "180+1"]
[EndTime "10:39:26 PDT"]
[Termination "jonaszmb won by resignation"]

1. d4 {[%clk 0:03:00.9]} 1... d5 {[%clk 0:02:59.2]} 2. c4 {[%clk 0:03:01]} 2...
e6 {[%clk 0:02:59.5]} 3. Nf3 {[%clk 0:03:01.3]} 3... Nf6 {[%clk 0:02:59.3]} 4.
g3 {[%clk 0:03:01.7]} 4... Be7 {[%clk 0:02:58.9]} 5. Bg2 {[%clk 0:03:02]} 5...
O-O {[%clk 0:02:59]} 6. O-O {[%clk 0:03:02.7]} 6... dxc4 {[%clk 0:02:58.8]} 7.
Nc3 {[%clk 0:03:03.1]} 7... c5 {[%clk 0:02:56.7]} 8. dxc5 {[%clk 0:03:00]} 8...
Bxc5 {[%clk 0:02:52.2]} 9. Ne5 {[%clk 0:02:59.3]} 9... Nbd7 {[%clk 0:02:45.6]}
10. Nxc4 {[%clk 0:02:58.3]} 10... Nb6 {[%clk 0:02:45.7]} 11. Nxb6 {[%clk
0:02:51.3]} 11... Bxb6 {[%clk 0:02:44.3]} 12. Bg5 {[%clk 0:02:48]} 12... h6
{[%clk 0:02:42]} 13. Qxd8 {[%clk 0:02:41.1]} 13... Rxd8 {[%clk 0:02:38]} 14.
Bxf6 {[%clk 0:02:39]} 14... gxf6 {[%clk 0:02:38.1]} 15. Rfd1 {[%clk 0:02:38.9]}
15... Rb8 {[%clk 0:02:33.7]} 16. Rxd8+ {[%clk 0:02:33.7]} 16... Bxd8 {[%clk
0:02:33]} 17. Rd1 {[%clk 0:02:34]} 17... Bb6 {[%clk 0:02:15]} 18. Ne4 {[%clk
0:02:03.2]} 18... f5 {[%clk 0:01:46.5]} 19. Nd6 {[%clk 0:01:55.9]} 19... Bc7
{[%clk 0:01:15.8]} 20. Nb5 {[%clk 0:00:55.8]} 20... Bb6 {[%clk 0:01:13.5]} 21.
b4 {[%clk 0:00:54.3]} 21... Kf8 {[%clk 0:01:07.9]} 22. a4 {[%clk 0:00:53.9]}
22... a5 {[%clk 0:01:07]} 23. bxa5 {[%clk 0:00:45.3]} 23... Bxa5 {[%clk
0:01:06.9]} 24. Nd6 {[%clk 0:00:40.7]} 24... Bd7 {[%clk 0:01:06.7]} 25. Nxb7
{[%clk 0:00:38.9]} 25... Bxa4 {[%clk 0:01:06.2]} 26. Ra1 {[%clk 0:00:34.7]}
26... Bb5 {[%clk 0:00:48.9]} 27. Nxa5 {[%clk 0:00:31.3]} 27... Bxe2 {[%clk
0:00:47.8]} 28. Nc6 {[%clk 0:00:30.5]} 28... Rb2 {[%clk 0:00:34.8]} 29. Nd4
{[%clk 0:00:29.7]} 29... Bc4 {[%clk 0:00:30.1]} 30. h4 {[%clk 0:00:29.7]} 30...
Ra2 {[%clk 0:00:29.2]} 31. Rxa2 {[%clk 0:00:29.6]} 31... Bxa2 {[%clk 0:00:29.4]}
32. Kf1 {[%clk 0:00:30.1]} 32... Kg7 {[%clk 0:00:29.7]} 33. Ke2 {[%clk
0:00:30.4]} 33... Kf6 {[%clk 0:00:29.9]} 34. Ke3 {[%clk 0:00:30.6]} 34... Bc4
{[%clk 0:00:29.8]} 35. Nc6 {[%clk 0:00:30.2]} 35... Ba2 {[%clk 0:00:29.2]} 36.
Kf4 {[%clk 0:00:24.2]} 36... Bc4 {[%clk 0:00:27.9]} 37. Ne5 {[%clk 0:00:24]}
37... Ba2 {[%clk 0:00:27.3]} 38. Bc6 {[%clk 0:00:24.1]} 38... Bb3 {[%clk
0:00:21.6]} 39. Be8 {[%clk 0:00:23.5]} 39... Ba2 {[%clk 0:00:17.5]} 40. Bxf7
{[%clk 0:00:23.9]} 40... Bb3 {[%clk 0:00:17.4]} 41. Be8 {[%clk 0:00:23.5]} 41...
Bd1 {[%clk 0:00:15.8]} 42. Bb5 {[%clk 0:00:22.9]} 42... Bc2 {[%clk 0:00:14.3]}
43. Bc4 {[%clk 0:00:22.6]} 43... Bd1 {[%clk 0:00:13.4]} 44. Nd7+ {[%clk
0:00:20.9]} 44... Ke7 {[%clk 0:00:12.4]} 45. Nc5 {[%clk 0:00:21.2]} 45... Kf6
{[%clk 0:00:08.1]} 46. Nxe6 {[%clk 0:00:20.8]} 46... Bc2 {[%clk 0:00:08.2]} 47.
Nd4 {[%clk 0:00:20.9]} 47... Bb1 {[%clk 0:00:08.3]} 48. Bb5 {[%clk 0:00:20.7]}
48... Kg6 {[%clk 0:00:07.2]} 49. Bd7 {[%clk 0:00:20.3]} 49... Kh5 {[%clk
0:00:06.9]} 50. Bxf5 {[%clk 0:00:13.3]} 50... Bd3 {[%clk 0:00:04.8]} 51. g4+
{[%clk 0:00:11.8]} 51... Kxh4 {[%clk 0:00:05.2]} 52. Bxd3 {[%clk 0:00:11.9]} 1-0

[Event "*** Titled Tuesday Blitz"]
[Site "Chess.com"]
[Date "2020.05.26"]
[Round "4"]
[White "DaggiGretarsson"]
[Black "UCantHandleDenker"]
[Result "1-0"]
[WhiteElo "2622"]
[BlackElo "2455"]
[TimeControl "180+1"]
[EndTime "10:39:27 PDT"]
[Termination "DaggiGretarsson won on time"]

1. d4 {[%clk 0:03:00]} 1... Nf6 {[%clk 0:02:58.5]} 2. c4 {[%clk 0:02:59.3]} 2...
d6 {[%clk 0:02:58.6]} 3. Nc3 {[%clk 0:02:58.5]} 3... Nbd7 {[%clk 0:02:59.1]} 4.
e4 {[%clk 0:02:57.7]} 4... e5 {[%clk 0:02:58.6]} 5. Nf3 {[%clk 0:02:57.3]} 5...
Be7 {[%clk 0:02:58.3]} 6. Be2 {[%clk 0:02:55.4]} 6... O-O {[%clk 0:02:57.6]} 7.
O-O {[%clk 0:02:55.4]} 7... c6 {[%clk 0:02:56.9]} 8. Rb1 {[%clk 0:02:47.4]} 8...
a6 {[%clk 0:02:50.6]} 9. b4 {[%clk 0:02:45]} 9... Qc7 {[%clk 0:02:48]} 10. Qc2
{[%clk 0:02:18.2]} 10... Re8 {[%clk 0:02:45.8]} 11. Rd1 {[%clk 0:02:16.6]} 11...
Bf8 {[%clk 0:02:41.8]} 12. h3 {[%clk 0:02:11.3]} 12... h6 {[%clk 0:02:36.7]} 13.
Be3 {[%clk 0:02:08.9]} 13... exd4 {[%clk 0:02:32.2]} 14. Nxd4 {[%clk 0:02:08.1]}
14... c5 {[%clk 0:02:30.1]} 15. bxc5 {[%clk 0:02:06.2]} 15... Nxc5 {[%clk
0:02:29.5]} 16. f3 {[%clk 0:02:04.3]} 16... Bd7 {[%clk 0:02:21.4]} 17. Nb3
{[%clk 0:01:56.8]} 17... b6 {[%clk 0:02:16.3]} 18. Qd2 {[%clk 0:01:48.6]} 18...
Bc6 {[%clk 0:02:09.9]} 19. Nd4 {[%clk 0:01:45.8]} 19... Bd7 {[%clk 0:02:07.5]}
20. Bf4 {[%clk 0:01:39]} 20... Rad8 {[%clk 0:02:00.2]} 21. Rb2 {[%clk
0:01:35.6]} 21... Ne6 {[%clk 0:01:41.3]} 22. Nxe6 {[%clk 0:01:26.7]} 22... Bxe6
{[%clk 0:01:40.4]} 23. Nd5 {[%clk 0:01:25.5]} 23... Bxd5 {[%clk 0:01:32.2]} 24.
cxd5 {[%clk 0:01:25.2]} 24... b5 {[%clk 0:01:12.1]} 25. Rc2 {[%clk 0:01:24.5]}
25... Qb6+ {[%clk 0:01:01.6]} 26. Be3 {[%clk 0:01:23.9]} 26... Qb7 {[%clk
0:01:01.4]} 27. Rdc1 {[%clk 0:01:23.3]} 27... Rc8 {[%clk 0:01:00]} 28. Rc6
{[%clk 0:01:22.7]} 28... Nd7 {[%clk 0:00:58.5]} 29. Qa5 {[%clk 0:01:18.6]} 29...
Nc5 {[%clk 0:00:53]} 30. Bxc5 {[%clk 0:01:03.7]} 30... dxc5 {[%clk 0:00:51.4]}
31. Qxa6 {[%clk 0:01:03.6]} 31... Qxa6 {[%clk 0:00:41.3]} 32. Rxa6 {[%clk
0:01:03.6]} 32... c4 {[%clk 0:00:24.6]} 33. a4 {[%clk 0:01:02.1]} 33... Ba3
{[%clk 0:00:18.7]} 34. Rc2 {[%clk 0:00:52.7]} 34... Bc5+ {[%clk 0:00:14.9]} 35.
Kf1 {[%clk 0:00:48.7]} 35... bxa4 {[%clk 0:00:14.4]} 36. Rxa4 {[%clk 0:00:38.8]}
36... Rb8 {[%clk 0:00:13.8]} 37. Bxc4 {[%clk 0:00:37.4]} 37... Rb1+ {[%clk
0:00:11.8]} 38. Ke2 {[%clk 0:00:37.6]} 38... Reb8 {[%clk 0:00:11.5]} 39. f4
{[%clk 0:00:28.7]} 39... Rg1 {[%clk 0:00:10.2]} 40. Kf3 {[%clk 0:00:28.4]} 40...
Rbb1 {[%clk 0:00:10.4]} 41. e5 {[%clk 0:00:25.9]} 41... Bd4 {[%clk 0:00:09.7]}
42. d6 {[%clk 0:00:25.2]} 42... Rbe1 {[%clk 0:00:08.5]} 43. Ra3 {[%clk
0:00:21.3]} 43... g5 {[%clk 0:00:07.9]} 44. d7 {[%clk 0:00:19.1]} 44... Bb6
{[%clk 0:00:07.9]} 45. Rb3 {[%clk 0:00:15.7]} 45... Bc7 {[%clk 0:00:06.9]} 46.
Bxf7+ {[%clk 0:00:12.4]} 46... Kxf7 {[%clk 0:00:06.3]} 47. Rxc7 {[%clk
0:00:12.5]} 47... Rgf1+ {[%clk 0:00:06.5]} 48. Kg3 {[%clk 0:00:10.7]} 48...
gxf4+ {[%clk 0:00:06.6]} 49. Kh4 {[%clk 0:00:10.9]} 49... Ke7 {[%clk 0:00:03.6]}
50. Rb8 {[%clk 0:00:08.5]} 1-0

[Event "*** Titled Tuesday Blitz"]
[Site "Chess.com"]
[Date "2020.05.26"]
[Round "4"]
[White "SerGo055"]
[Black "Pavalamalli"]
[Result "1/2-1/2"]
[WhiteElo "2574"]
[BlackElo "2289"]
[TimeControl "180+1"]
[EndTime "10:39:27 PDT"]
[Termination "Game drawn by agreement"]

1. d4 {[%clk 0:03:00.9]} 1... Nf6 {[%clk 0:02:59.1]} 2. Nf3 {[%clk 0:02:59.1]}
2... e6 {[%clk 0:02:56.5]} 3. c4 {[%clk 0:02:58.6]} 3... c5 {[%clk 0:02:54.5]}
4. e3 {[%clk 0:02:56.4]} 4... cxd4 {[%clk 0:02:42.4]} 5. exd4 {[%clk 0:02:57.3]}
5... d5 {[%clk 0:02:41.4]} 6. Nc3 {[%clk 0:02:56.1]} 6... Be7 {[%clk 0:02:35.4]}
7. Bg5 {[%clk 0:02:52.7]} 7... O-O {[%clk 0:02:32.3]} 8. a3 {[%clk 0:02:47.9]}
8... h6 {[%clk 0:02:27.1]} 9. Bh4 {[%clk 0:02:45.2]} 9... b6 {[%clk 0:02:24.1]}
10. Rc1 {[%clk 0:02:29.9]} 10... Bb7 {[%clk 0:02:22.3]} 11. Bg3 {[%clk 0:02:04]}
11... Nbd7 {[%clk 0:02:10.6]} 12. Bd3 {[%clk 0:01:57.9]} 12... dxc4 {[%clk
0:02:08.6]} 13. Bxc4 {[%clk 0:01:57.5]} 13... Rc8 {[%clk 0:02:01.7]} 14. Bd3
{[%clk 0:01:55.3]} 14... Nd5 {[%clk 0:01:52.3]} 15. Ne4 {[%clk 0:01:26.1]} 15...
Rxc1 {[%clk 0:01:45.1]} 16. Qxc1 {[%clk 0:01:25.8]} 16... N7f6 {[%clk
0:01:45.2]} 17. O-O {[%clk 0:01:23.7]} 17... Nxe4 {[%clk 0:01:38.2]} 18. Bxe4
{[%clk 0:01:23.5]} 18... Nc3 {[%clk 0:01:35.9]} 19. Qxc3 {[%clk 0:00:55]} 19...
Bxe4 {[%clk 0:01:33.8]} 20. Ne5 {[%clk 0:00:53.6]} 20... Bf6 {[%clk 0:01:23.6]}
21. Re1 {[%clk 0:00:49.9]} 21... Bd5 {[%clk 0:01:16.9]} 22. Rc1 {[%clk
0:00:47.1]} 22... Ba8 {[%clk 0:01:08.9]} 23. f3 {[%clk 0:00:23.9]} 23... Qd5
{[%clk 0:01:00.7]} 24. Bf2 {[%clk 0:00:23.8]} 24... Bb7 {[%clk 0:00:46]} 25. Qc7
{[%clk 0:00:21.9]} 25... Bxe5 {[%clk 0:00:38.8]} 26. Qxe5 {[%clk 0:00:19]} 26...
Qxe5 {[%clk 0:00:33.7]} 27. dxe5 {[%clk 0:00:19.3]} 27... Rc8 {[%clk 0:00:33.4]}
28. Rd1 {[%clk 0:00:17]} 28... Bd5 {[%clk 0:00:32.1]} 29. Bd4 {[%clk 0:00:16.4]}
29... Rc2 {[%clk 0:00:31.4]} 30. Bc3 {[%clk 0:00:14.6]} 30... b5 {[%clk
0:00:27.9]} 31. Rd2 {[%clk 0:00:14.3]} 31... Rxd2 {[%clk 0:00:27.2]} 32. Bxd2
{[%clk 0:00:15.2]} 32... Kf8 {[%clk 0:00:24.1]} 33. Kf2 {[%clk 0:00:15.8]} 33...
Ke7 {[%clk 0:00:23.2]} 34. Ke3 {[%clk 0:00:16.7]} 34... Kd7 {[%clk 0:00:20.5]}
35. Kd4 {[%clk 0:00:17.1]} 35... Kc6 {[%clk 0:00:20.4]} 36. Bb4 {[%clk
0:00:17.3]} 36... h5 {[%clk 0:00:20.2]} 37. h4 {[%clk 0:00:12.6]} 37... g6
{[%clk 0:00:20]} 38. Ke3 {[%clk 0:00:13.2]} 38... a6 {[%clk 0:00:18.9]} 39. Kf4
{[%clk 0:00:13.2]} 39... Kd7 {[%clk 0:00:18.9]} 40. Kg5 {[%clk 0:00:13.5]} 40...
Ke8 {[%clk 0:00:18.7]} 41. Bc5 {[%clk 0:00:12.7]} 41... Bc6 {[%clk 0:00:18.5]}
42. Kf4 {[%clk 0:00:12.3]} 42... Bd5 {[%clk 0:00:18.7]} 43. g4 {[%clk
0:00:12.5]} 43... Bc6 {[%clk 0:00:17.1]} 44. gxh5 {[%clk 0:00:12.8]} 44... gxh5
{[%clk 0:00:17.2]} 45. Ke3 {[%clk 0:00:11.7]} 45... Bd5 {[%clk 0:00:16.7]} 46.
f4 {[%clk 0:00:12.3]} 46... Kd7 {[%clk 0:00:16.8]} 47. Kd4 {[%clk 0:00:12.1]}
47... Kc6 {[%clk 0:00:16.9]} 48. Bd6 {[%clk 0:00:12.3]} 48... Bf3 {[%clk
0:00:16.5]} 49. f5 {[%clk 0:00:09.7]} 49... exf5 {[%clk 0:00:15.7]} 50. Ke3
{[%clk 0:00:10]} 50... Bg4 {[%clk 0:00:15.2]} 51. Kf4 {[%clk 0:00:10.6]} 51...
Kd7 {[%clk 0:00:15.2]} 52. Bb4 {[%clk 0:00:07.3]} 52... Ke6 {[%clk 0:00:14.6]}
53. Bc3 {[%clk 0:00:07.1]} 1/2-1/2

[Event "*** Titled Tuesday Blitz"]
[Site "Chess.com"]
[Date "2020.05.26"]
[Round "4"]
[White "BikingBrian"]
[Black "Herracek"]
[Result "1/2-1/2"]
[WhiteElo "2253"]
[BlackElo "2569"]
[TimeControl "180+1"]
[EndTime "10:39:27 PDT"]
[Termination "Game drawn - insufficient material"]

1. d4 {[%clk 0:03:00.9]} 1... Nf6 {[%clk 0:02:59.9]} 2. Bg5 {[%clk 0:02:58.5]}
2... Ne4 {[%clk 0:02:59.7]} 3. Bf4 {[%clk 0:02:57.9]} 3... d5 {[%clk 0:02:59.4]}
4. f3 {[%clk 0:02:58.3]} 4... Nf6 {[%clk 0:02:59.5]} 5. e4 {[%clk 0:02:58.5]}
5... dxe4 {[%clk 0:02:58.9]} 6. Nc3 {[%clk 0:02:58.7]} 6... Nc6 {[%clk
0:02:35.2]} 7. d5 {[%clk 0:02:49.7]} 7... e5 {[%clk 0:02:35.1]} 8. dxe6 {[%clk
0:02:43.5]} 8... Bxe6 {[%clk 0:02:34.8]} 9. Qxd8+ {[%clk 0:02:37.4]} 9... Rxd8
{[%clk 0:02:34.4]} 10. Bxc7 {[%clk 0:02:35.7]} 10... Rc8 {[%clk 0:02:34.2]} 11.
Bg3 {[%clk 0:02:28.8]} 11... Bb4 {[%clk 0:02:34.2]} 12. O-O-O {[%clk 0:02:20.5]}
12... Bxc3 {[%clk 0:02:32.5]} 13. bxc3 {[%clk 0:02:21.4]} 13... Bxa2 {[%clk
0:02:32.6]} 14. fxe4 {[%clk 0:02:15]} 14... O-O {[%clk 0:02:29.1]} 15. Kb2
{[%clk 0:02:07.6]} 15... Nxe4 {[%clk 0:02:23.6]} 16. Bd3 {[%clk 0:02:01.2]}
16... Bd5 {[%clk 0:02:10.5]} 17. c4 {[%clk 0:01:47.9]} 17... Nxg3 {[%clk
0:01:47.7]} 18. hxg3 {[%clk 0:01:39.5]} 18... Bxg2 {[%clk 0:01:47.7]} 19. Bxh7+
{[%clk 0:01:23.4]} 19... Kh8 {[%clk 0:01:47.3]} 20. Rh2 {[%clk 0:01:23.8]} 20...
g6 {[%clk 0:01:47.5]} 21. Bxg6+ {[%clk 0:01:20.7]} 21... Kg7 {[%clk 0:01:47.6]}
22. Bd3 {[%clk 0:01:13.2]} 22... Ne5 {[%clk 0:01:34.8]} 23. Rxg2 {[%clk
0:01:05.3]} 23... Nxc4+ {[%clk 0:01:34.6]} 24. Bxc4 {[%clk 0:00:59.5]} 24...
Rxc4 {[%clk 0:01:35.5]} 25. Nf3 {[%clk 0:00:56.8]} 25... Rb4+ {[%clk 0:01:20.3]}
26. Kc1 {[%clk 0:00:54.2]} 26... a5 {[%clk 0:01:20.5]} 27. Rd4 {[%clk
0:00:44.5]} 27... Rb5 {[%clk 0:01:10.4]} 28. Rg4+ {[%clk 0:00:37]} 28... Kf6
{[%clk 0:01:10.7]} 29. Nd4 {[%clk 0:00:34]} 29... Rd5 {[%clk 0:00:57.1]} 30.
Rf2+ {[%clk 0:00:31.5]} 30... Ke7 {[%clk 0:00:57.3]} 31. Re4+ {[%clk 0:00:23.4]}
31... Kd7 {[%clk 0:00:54.1]} 32. Rf5 {[%clk 0:00:20.7]} 32... Kd6 {[%clk
0:00:43.8]} 33. Nb5+ {[%clk 0:00:20.1]} 33... Kc5 {[%clk 0:00:43.9]} 34. Rxd5+
{[%clk 0:00:18]} 34... Kxd5 {[%clk 0:00:44.8]} 35. Nc3+ {[%clk 0:00:17.4]} 35...
Kc5 {[%clk 0:00:44]} 36. Re5+ {[%clk 0:00:16.8]} 36... Kb6 {[%clk 0:00:34.1]}
37. Rb5+ {[%clk 0:00:16]} 37... Ka6 {[%clk 0:00:32.1]} 38. Kb2 {[%clk
0:00:13.4]} 38... Rg8 {[%clk 0:00:30.5]} 39. Rf5 {[%clk 0:00:11.8]} 39... Rxg3
{[%clk 0:00:27.5]} 40. Rf6+ {[%clk 0:00:11.9]} 40... b6 {[%clk 0:00:25.4]} 41.
Nd5 {[%clk 0:00:08.8]} 41... Rg5 {[%clk 0:00:20.7]} 42. Nc7+ {[%clk 0:00:05.9]}
42... Kb7 {[%clk 0:00:20]} 43. Rxf7 {[%clk 0:00:06.4]} 43... Kc6 {[%clk
0:00:19.1]} 44. Ne6 {[%clk 0:00:06.5]} 44... Rb5+ {[%clk 0:00:17.2]} 45. Kc1
{[%clk 0:00:05.9]} 45... Re5 {[%clk 0:00:17.5]} 46. Nd4+ {[%clk 0:00:05.5]}
46... Kc5 {[%clk 0:00:18]} 47. Nb3+ {[%clk 0:00:05.6]} 47... Kb4 {[%clk
0:00:18.5]} 48. Rf4+ {[%clk 0:00:05.7]} 48... Ka3 {[%clk 0:00:17.1]} 49. Kd2
{[%clk 0:00:04.8]} 49... a4 {[%clk 0:00:16.1]} 50. Nd4 {[%clk 0:00:04.8]} 50...
b5 {[%clk 0:00:15.5]} 51. Kc3 {[%clk 0:00:04.1]} 51... b4+ {[%clk 0:00:15]} 52.
Kc4 {[%clk 0:00:04.2]} 52... b3 {[%clk 0:00:11.4]} 53. Nb5+ {[%clk 0:00:03.6]}
53... Rxb5 {[%clk 0:00:10.4]} 54. Kxb5 {[%clk 0:00:02.3]} 54... bxc2 {[%clk
0:00:09]} 55. Rc4 {[%clk 0:00:02.4]} 55... Kb3 {[%clk 0:00:08.4]} 56. Rxc2
{[%clk 0:00:01.3]} 56... Kxc2 {[%clk 0:00:09.3]} 57. Kxa4 {[%clk 0:00:01.5]}
1/2-1/2

[Event "*** Titled Tuesday Blitz"]
[Site "Chess.com"]
[Date "2020.05.26"]
[Round "4"]
[White "JLRHei"]
[Black "GMartin_Petrov"]
[Result "1-0"]
[WhiteElo "2328"]
[BlackElo "2565"]
[TimeControl "180+1"]
[EndTime "10:39:27 PDT"]
[Termination "JLRHei won on time"]

1. d4 {[%clk 0:03:00.9]} 1... Nf6 {[%clk 0:02:57.8]} 2. c4 {[%clk 0:03:01.4]}
2... e6 {[%clk 0:02:57.5]} 3. Nf3 {[%clk 0:03:01.8]} 3... b6 {[%clk 0:02:56.9]}
4. g3 {[%clk 0:03:01.7]} 4... Ba6 {[%clk 0:02:56]} 5. b3 {[%clk 0:02:57.5]} 5...
Bb4+ {[%clk 0:02:54.9]} 6. Bd2 {[%clk 0:02:57.7]} 6... Be7 {[%clk 0:02:53.7]} 7.
Bg2 {[%clk 0:02:57.9]} 7... O-O {[%clk 0:02:46.5]} 8. O-O {[%clk 0:02:57.7]}
8... d5 {[%clk 0:02:46.4]} 9. Ne5 {[%clk 0:02:33.2]} 9... c5 {[%clk 0:02:42.1]}
10. Be3 {[%clk 0:02:10.7]} 10... Bb7 {[%clk 0:02:29.1]} 11. Nd2 {[%clk
0:02:09.6]} 11... Nbd7 {[%clk 0:02:00.8]} 12. Nxd7 {[%clk 0:01:57.9]} 12... Qxd7
{[%clk 0:01:58.6]} 13. Nf3 {[%clk 0:01:46.7]} 13... dxc4 {[%clk 0:01:58.2]} 14.
Ne5 {[%clk 0:01:46.6]} 14... Qc7 {[%clk 0:01:57.3]} 15. Bxb7 {[%clk 0:01:40.7]}
15... Qxb7 {[%clk 0:01:57.9]} 16. dxc5 {[%clk 0:01:40.9]} 16... Nd5 {[%clk
0:01:34]} 17. c6 {[%clk 0:00:54.2]} 17... Qc7 {[%clk 0:01:30.8]} 18. Bd4 {[%clk
0:00:51.9]} 18... cxb3 {[%clk 0:01:21.6]} 19. axb3 {[%clk 0:00:44.1]} 19... Rfd8
{[%clk 0:01:19.5]} 20. Qc1 {[%clk 0:00:29.3]} 20... f6 {[%clk 0:01:05.3]} 21.
Nd3 {[%clk 0:00:22.7]} 21... Rac8 {[%clk 0:01:01.6]} 22. Ra4 {[%clk 0:00:15.2]}
22... a5 {[%clk 0:00:36.8]} 23. e4 {[%clk 0:00:11.4]} 23... Nb4 {[%clk
0:00:35.5]} 24. Nxb4 {[%clk 0:00:10.9]} 24... Bxb4 {[%clk 0:00:33.6]} 25. Qe3
{[%clk 0:00:11.3]} 25... Qxc6 {[%clk 0:00:31.9]} 26. Bxb6 {[%clk 0:00:11.2]}
26... Rd6 {[%clk 0:00:22]} 27. Bxa5 {[%clk 0:00:09.6]} 27... Bc5 {[%clk
0:00:22.1]} 28. Qe2 {[%clk 0:00:07.4]} 28... Ra8 {[%clk 0:00:19]} 29. Rfa1
{[%clk 0:00:05.6]} 29... Bd4 {[%clk 0:00:15.6]} 30. b4 {[%clk 0:00:05.4]} 30...
Bxa1 {[%clk 0:00:15]} 31. Rxa1 {[%clk 0:00:06.1]} 31... Rb8 {[%clk 0:00:12.4]}
32. Qe3 {[%clk 0:00:05.8]} 32... h6 {[%clk 0:00:11.2]} 33. Rc1 {[%clk
0:00:05.8]} 33... Qb5 {[%clk 0:00:10.8]} 34. Bc7 {[%clk 0:00:05.5]} 34... Rdd8
{[%clk 0:00:05.4]} 35. Bxd8 {[%clk 0:00:04.9]} 35... Rxd8 {[%clk 0:00:05]} 36.
Qc5 {[%clk 0:00:05.3]} 36... Qd3 {[%clk 0:00:04.4]} 37. Qc4 {[%clk 0:00:04.2]}
37... Qd2 {[%clk 0:00:03.6]} 38. Qxe6+ {[%clk 0:00:03.3]} 38... Kh8 {[%clk
0:00:03]} 39. Qc4 {[%clk 0:00:03]} 39... Qb2 {[%clk 0:00:02.5]} 40. b5 {[%clk
0:00:01.6]} 40... Rd2 {[%clk 0:00:02]} 41. Qc5 {[%clk 0:00:01.8]} 41... Rxf2
{[%clk 0:00:01.1]} 42. Qxf2 {[%clk 0:00:01.3]} 42... Qxc1+ {[%clk 0:00:01.7]}
43. Kg2 {[%clk 0:00:02.2]} 43... Qc4 {[%clk 0:00:01.7]} 44. b6 {[%clk
0:00:01.4]} 44... Qxe4+ {[%clk 0:00:01.9]} 45. Kh3 {[%clk 0:00:01.8]} 45... Qb4
{[%clk 0:00:02.6]} 46. Kg2 {[%clk 0:00:01.9]} 46... Kh7 {[%clk 0:00:02.4]} 47.
Kh3 {[%clk 0:00:02.4]} 47... g6 {[%clk 0:00:02.6]} 48. Qxf6 {[%clk 0:00:02.2]}
48... h5 {[%clk 0:00:02.4]} 49. Qf7+ {[%clk 0:00:02.4]} 49... Kh6 {[%clk
0:00:02.3]} 50. b7 {[%clk 0:00:02.8]} 50... Qb1 {[%clk 0:00:01.5]} 51. Qf8+
{[%clk 0:00:02.2]} 51... Kg5 {[%clk 0:00:02]} 52. b8=Q {[%clk 0:00:02.9]} 1-0

[Event "*** Titled Tuesday Blitz"]
[Site "Chess.com"]
[Date "2020.05.26"]
[Round "4"]
[White "Chepaschess"]
[Black "ChessTraining77"]
[Result "1-0"]
[WhiteElo "2804"]
[BlackElo "2530"]
[TimeControl "180+1"]
[EndTime "10:39:28 PDT"]
[Termination "Chepaschess won on time"]

1. Nf3 {[%clk 0:03:00.9]} 1... d5 {[%clk 0:02:58.6]} 2. d4 {[%clk 0:03:00.4]}
2... Nf6 {[%clk 0:02:57.8]} 3. c4 {[%clk 0:03:00.8]} 3... c6 {[%clk 0:02:57.2]}
4. e3 {[%clk 0:03:00.7]} 4... Bf5 {[%clk 0:02:57.1]} 5. Nc3 {[%clk 0:03:00.8]}
5... e6 {[%clk 0:02:57.2]} 6. Nh4 {[%clk 0:02:58.9]} 6... Bg6 {[%clk 0:02:57.4]}
7. Qb3 {[%clk 0:02:57.1]} 7... Qc7 {[%clk 0:02:56.1]} 8. Nxg6 {[%clk 0:02:55.5]}
8... hxg6 {[%clk 0:02:55.4]} 9. g3 {[%clk 0:02:55.2]} 9... Nbd7 {[%clk
0:02:55.3]} 10. Bg2 {[%clk 0:02:55.1]} 10... Nb6 {[%clk 0:02:55.3]} 11. cxd5
{[%clk 0:02:54]} 11... exd5 {[%clk 0:02:55.3]} 12. O-O {[%clk 0:02:50.8]} 12...
Be7 {[%clk 0:02:52.7]} 13. a4 {[%clk 0:02:32.7]} 13... Nc8 {[%clk 0:02:46]} 14.
e4 {[%clk 0:02:27.5]} 14... dxe4 {[%clk 0:02:44.2]} 15. Nxe4 {[%clk 0:02:25.9]}
15... O-O {[%clk 0:02:14.8]} 16. a5 {[%clk 0:02:01.7]} 16... Nd6 {[%clk
0:02:02.1]} 17. Bf4 {[%clk 0:01:59.4]} 17... Rad8 {[%clk 0:01:58.7]} 18. Nc5
{[%clk 0:01:54.5]} 18... Rb8 {[%clk 0:01:48]} 19. Rfe1 {[%clk 0:01:50.8]} 19...
Rfd8 {[%clk 0:01:46.1]} 20. Rac1 {[%clk 0:01:42.2]} 20... Bf8 {[%clk 0:01:44.6]}
21. Qa4 {[%clk 0:01:35.4]} 21... a6 {[%clk 0:01:37.9]} 22. b4 {[%clk 0:01:33.1]}
22... Qc8 {[%clk 0:01:33.2]} 23. Red1 {[%clk 0:01:12.3]} 23... Qf5 {[%clk
0:01:16.4]} 24. Qb3 {[%clk 0:01:05.9]} 24... Nd7 {[%clk 0:01:03.1]} 25. Rd3
{[%clk 0:00:52]} 25... g5 {[%clk 0:01:00.6]} 26. Bd2 {[%clk 0:00:27.3]} 26...
Nxc5 {[%clk 0:00:54.5]} 27. Rxc5 {[%clk 0:00:26.4]} 27... Qg6 {[%clk 0:00:50.9]}
28. Rxg5 {[%clk 0:00:26]} 28... Qf6 {[%clk 0:00:49.7]} 29. d5 {[%clk 0:00:23.8]}
29... Nb5 {[%clk 0:00:46.8]} 30. dxc6 {[%clk 0:00:16.2]} 30... bxc6 {[%clk
0:00:45.3]} 31. Be3 {[%clk 0:00:09.8]} 31... Rxd3 {[%clk 0:00:42.1]} 32. Qxd3
{[%clk 0:00:10.7]} 32... Bxb4 {[%clk 0:00:40.3]} 33. h4 {[%clk 0:00:09.2]} 33...
Bf8 {[%clk 0:00:35.5]} 34. Bf4 {[%clk 0:00:08.7]} 34... Rd8 {[%clk 0:00:34.6]}
35. Qc4 {[%clk 0:00:08.5]} 35... c5 {[%clk 0:00:26.5]} 36. Bd5 {[%clk
0:00:07.2]} 36... Nc7 {[%clk 0:00:18.8]} 37. Bf3 {[%clk 0:00:05.8]} 37... Ne6
{[%clk 0:00:17.5]} 38. Rg4 {[%clk 0:00:06.1]} 38... Nd4 {[%clk 0:00:15.9]} 39.
Bg2 {[%clk 0:00:05.5]} 39... Re8 {[%clk 0:00:14.3]} 40. Bg5 {[%clk 0:00:04.5]}
40... Qe6 {[%clk 0:00:13.7]} 41. Qxe6 {[%clk 0:00:02]} 41... Nxe6 {[%clk
0:00:13.2]} 42. Re4 {[%clk 0:00:02.3]} 42... Rd8 {[%clk 0:00:11.3]} 43. Bxd8
{[%clk 0:00:01.5]} 43... Nxd8 {[%clk 0:00:04.8]} 44. Re8 {[%clk 0:00:02.4]}
44... Ne6 {[%clk 0:00:04]} 45. Bd5 {[%clk 0:00:02.8]} 45... Nd4 {[%clk 0:00:04]}
46. Rd8 {[%clk 0:00:03]} 46... c4 {[%clk 0:00:03.8]} 47. Bxc4 {[%clk 0:00:03.2]}
47... Nc6 {[%clk 0:00:04.1]} 48. Rc8 {[%clk 0:00:03.5]} 48... Nxa5 {[%clk
0:00:03.8]} 49. Bd5 {[%clk 0:00:03.8]} 49... g6 {[%clk 0:00:03.2]} 50. Ra8
{[%clk 0:00:03.8]} 1-0